bitfinex/quotes_BTCUSD_20241024
["timestamp","ask_amount","ask_price","bid_price","bid_amount"]
[1729733312511,0.233913,67276.0,67275.0,0.22283218]
[1729733312662,0.68683437,67276.0,67275.0,0.22283218]
[1729733312864,0.68683437,67276.0,67275.0,0.00029511]
[1729733313064,0.77580135,67276.0,67275.0,0.44622511]
[1729733314099,0.68683437,67276.0,67275.0,0.44622511]
[1729733314916,0.69062152,67276.0,67275.0,0.44622511]
[1729733315123,0.5263282,67276.0,67275.0,0.44622511]
[1729733315964,0.69043556,67276.0,67275.0,0.44622511]
[1729733316179,0.5929944,67276.0,67275.0,0.44622511]
[1729733316393,0.69039151,67276.0,67275.0,0.44622511]
[1729733317187,0.80146737,67276.0,67275.0,0.44622511]
[1729733317396,0.69039151,67276.0,67275.0,0.44622511]
[1729733318534,0.69039151,67276.0,67253.0,0.000841]
[1729733318535,0.005,67272.0,67253.0,0.000841]
[1729733318735,0.56975792,67261.0,67253.0,0.000841]
[1729733318925,0.38444281,67261.0,67253.0,0.000841]
[1729733319452,0.38444281,67261.0,67260.0,0.44687]
[1729733320106,0.45107718,67261.0,67260.0,0.44687]
[1729733320314,0.38444281,67261.0,67260.0,0.44687]
[1729733320722,0.38667354,67261.0,67260.0,0.44687]
[1729733321102,0.38187254,67261.0,67260.0,0.44687]
[1729733323679,0.38068573,67261.0,67260.0,0.44687]
[1729733323880,0.52158006,67261.0,67260.0,0.44687]
[1729733325501,0.38568573,67261.0,67260.0,0.44687]
[1729733325707,0.38187254,67261.0,67260.0,0.44687]
[1729733327920,0.38167354,67261.0,67260.0,0.44687]
[1729733328116,0.38187254,67261.0,67260.0,0.44687]
[1729733329336,0.38187254,67261.0,67245.0,0.005]
[1729733329337,0.129168,67244.0,67243.0,0.00030833]
[1729733329792,0.51036714,67244.0,67243.0,0.00030833]
[1729733329803,0.51556614,67244.0,67243.0,0.00030833]
[1729733330160,0.51556614,67244.0,67243.0,0.44644833]
[1729733330717,0.51536714,67244.0,67243.0,0.44644833]
[1729733330925,0.51556614,67244.0,67243.0,0.44644833]
[1729733331171,0.218969,67244.0,67243.0,0.44644833]
[1729733331345,0.22619994,67244.0,67243.0,0.52774833]
[1729733331568,0.22119994,67244.0,67243.0,0.52774833]
[1729733332192,0.22619994,67244.0,67243.0,0.52774833]
[1729733332395,0.22119994,67244.0,67243.0,0.52774833]
[1729733333175,0.22119994,67244.0,67243.0,0.55074833]
[1729733334024,0.22119994,67244.0,67243.0,0.55157433]
[1729733334236,0.22119994,67244.0,67243.0,0.54557433]
[1729733335318,0.22119994,67244.0,67243.0,0.68146866]
[1729733336518,0.22119994,67244.0,67243.0,0.68746866]
[1729733337930,0.22119994,67244.0,67243.0,0.55157433]
[1729733343800,0.22119994,67244.0,67243.0,0.55622695]
[1729733344212,0.12119994,67244.0,67243.0,0.55622695]
[1729733346800,0.237908,67253.0,67247.0,0.023]
[1729733347002,0.237908,67253.0,67243.0,0.53322695]
[1729733347003,0.22253707,67251.0,67250.0,0.025]
[1729733347178,0.34149407,67251.0,67250.0,0.17313067]
[1729733347327,0.118956,67252.0,67251.0,0.023]
[1729733347534,0.118956,67252.0,67251.0,0.02765262]
[1729733347757,0.237901,67255.0,67251.0,0.48687588]
[1729733347965,0.356851,67255.0,67254.0,0.15903394]
[1729733348170,0.356851,67255.0,67254.0,0.16368571]
[1729733348337,0.11895,67255.0,67254.0,0.63033114]
[1729733348553,0.11895,67255.0,67254.0,0.70933114]
[1729733348775,0.11895,67255.0,67254.0,0.70188831]
[1729733349199,0.118948,67256.0,67255.0,0.023]
[1729733349416,0.239533,67261.0,67255.0,0.03509437]
[1729733349417,0.118947,67257.0,67255.0,0.03509437]
[1729733349609,0.239533,67261.0,67256.0,0.01209437]
[1729733349932,0.118944,67259.0,67258.0,0.15903394]
[1729733350135,0.118944,67259.0,67258.0,0.17112784]
[1729733350391,0.118944,67259.0,67258.0,0.62285784]
[1729733350828,0.118944,67259.0,67258.0,0.4868239]
[1729733351034,0.118944,67259.0,67258.0,0.62278194]
[1729733351247,0.239532,67261.0,67259.0,0.023]
[1729733351459,0.118941,67260.0,67259.0,0.023]
[1729733351633,0.239532,67261.0,67259.0,0.023]
[1729733351634,0.239532,67261.0,67260.0,0.355779]
[1729733351873,0.358471,67261.0,67260.0,0.3604302]
[1729733353381,0.358471,67261.0,67260.0,0.36043035]
[1729733357431,0.358471,67261.0,67260.0,0.355779]
[1729733357776,0.358471,67261.0,67260.0,0.36043037]
[1729733358236,0.358471,67261.0,67260.0,0.355779]
[1729733360972,0.358471,67261.0,67260.0,0.350779]
[1729733361351,0.001652,67261.0,67260.0,0.89829508]
[1729733361576,0.001652,67261.0,67260.0,0.76698803]
[1729733361998,0.120591,67261.0,67260.0,0.76698803]
[1729733362198,0.120591,67261.0,67260.0,0.76898803]
[1729733362351,0.001652,67261.0,67260.0,0.76898803]
[1729733363347,0.001652,67261.0,67260.0,0.88792903]
[1729733363601,0.001652,67261.0,67260.0,0.76898803]
[1729733364171,0.001652,67261.0,67260.0,0.88792903]
[1729733364403,0.001652,67261.0,67260.0,0.76898803]
[1729733365422,0.001652,67261.0,67260.0,0.76233704]
[1729733367095,0.001652,67261.0,67260.0,0.76433704]
[1729733367294,0.001652,67261.0,67260.0,0.76233704]
[1729733368933,0.001652,67261.0,67260.0,0.88127804]
[1729733368934,0.001652,67261.0,67260.0,0.88327804]
[1729733369152,0.001652,67261.0,67260.0,0.88127804]
[1729733369811,0.001652,67261.0,67260.0,0.76233704]
[1729733370946,0.001652,67261.0,67260.0,0.76316304]
[1729733371609,0.001652,67261.0,67260.0,0.88210404]
[1729733372480,0.001652,67261.0,67260.0,0.88875485]
[1729733373287,0.001652,67261.0,67260.0,0.88675485]
[1729733374180,0.001652,67261.0,67260.0,0.88875485]
[1729733375118,0.001652,67261.0,67260.0,0.88675485]
[1729733375594,0.001652,67261.0,67260.0,0.88875485]
[1729733375735,0.001652,67261.0,67260.0,0.88675485]
[1729733375946,0.001652,67261.0,67260.0,0.76316304]
[1729733376175,0.001652,67261.0,67260.0,0.57621385]
[1729733376754,0.001652,67261.0,67260.0,0.69515485]
[1729733376985,0.001652,67261.0,67260.0,0.57621385]
[1729733377407,0.120591,67261.0,67260.0,0.57621385]
[1729733377564,0.120591,67261.0,67260.0,0.35625581]
[1729733380136,0.120591,67261.0,67260.0,0.35625609]
[1729733380544,0.001652,67261.0,67260.0,0.35625609]
[1729733380956,0.120591,67261.0,67260.0,0.35625609]
[1729733381920,0.001652,67261.0,67260.0,0.35625609]
[1729733384445,0.001652,67261.0,67260.0,0.44323814]
[1729733387112,0.001652,67261.0,67260.0,0.56217914]
[1729733387776,0.001652,67261.0,67260.0,0.44323814]
[1729733388256,0.001652,67261.0,67260.0,0.56217914]
[1729733390694,0.001652,67261.0,67260.0,0.55752805]
[1729733390905,0.001652,67261.0,67260.0,0.56217905]
[1729733391108,0.001652,67261.0,67260.0,0.56217901]
[1729733393987,0.001652,67261.0,67260.0,0.57462043]
[1729733394525,0.001652,67261.0,67260.0,0.57461998]
[1729733398210,0.001652,67261.0,67260.0,0.57462001]
[1729733400015,0.001652,67261.0,67260.0,0.57662001]
[1729733400234,0.001652,67261.0,67260.0,1.18108792]
[1729733400448,0.001652,67261.0,67260.0,1.10340694]
[1729733400708,0.001652,67261.0,67260.0,0.92944284]
[1729733400905,0.001652,67261.0,67260.0,0.92744284]
[1729733401133,0.001652,67261.0,67260.0,0.72004003]
[1729733401352,0.001652,67261.0,67260.0,0.80702208]
[1729733401612,0.001652,67261.0,67260.0,0.8070234]
[1729733403914,0.001652,67261.0,67260.0,0.89400545]
[1729733404135,0.001652,67261.0,67260.0,0.8070234]
[1729733404382,0.001652,67261.0,67260.0,0.8940055]
[1729733404640,0.001652,67261.0,67260.0,0.80702345]
[1729733406659,0.001652,67261.0,67260.0,0.80902345]
[1729733406866,0.001652,67261.0,67260.0,0.80702345]
[1729733408681,0.001652,67261.0,67260.0,0.34069659]
[1729733408881,0.001652,67261.0,67260.0,0.33325561]
[1729733408882,0.200091,67261.0,67260.0,0.33325561]
[1729733409108,0.45809238,67261.0,67260.0,0.33325561]
[1729733409312,0.391191,67261.0,67260.0,0.328605]
[1729733410088,0.391191,67261.0,67260.0,0.351605]
[1729733410497,0.45808719,67261.0,67260.0,0.351605]
[1729733414405,0.391191,67261.0,67260.0,0.351605]
[1729733415061,0.45806866,67261.0,67260.0,0.351605]
[1729733415286,0.391191,67261.0,67260.0,0.351605]
[1729733415728,0.76923188,67261.0,67260.0,0.328605]
[1729733415950,0.81646727,67261.0,67260.0,0.328605]
[1729733419505,0.82033911,67261.0,67260.0,0.328605]
[1729733422461,0.93164086,67261.0,67260.0,0.328605]
[1729733423635,0.82033911,67261.0,67260.0,0.328605]
[1729733424452,0.82008834,67261.0,67260.0,0.328605]
[1729733424964,0.8162165,67261.0,67260.0,0.328605]
[1729733425433,0.90522566,67261.0,67260.0,0.328605]
[1729733426038,0.8162165,67261.0,67260.0,0.328605]
[1729733426244,1.06346284,67261.0,67260.0,0.328605]
[1729733426528,0.95219295,67261.0,67260.0,0.328605]
[1729733428583,1.06341582,67261.0,67260.0,0.328605]
[1729733430359,0.95219295,67261.0,67260.0,0.328605]
[1729733431123,1.06339922,67261.0,67260.0,0.328605]
[1729733431554,0.95219295,67261.0,67260.0,0.328605]
[1729733431755,0.95719295,67261.0,67260.0,0.328605]
[1729733432385,1.0931694,67261.0,67260.0,0.328605]
[1729733432593,1.1031694,67261.0,67260.0,0.328605]
[1729733432832,0.96719295,67261.0,67260.0,0.328605]
[1729733433450,1.10073774,67261.0,67260.0,0.328605]
[1729733434375,1.23671419,67261.0,67260.0,0.328605]
[1729733434551,0.96219295,67261.0,67260.0,0.328605]
[1729733434907,0.96719295,67261.0,67260.0,0.328605]
[1729733435101,0.96219295,67261.0,67260.0,0.328605]
[1729733438168,0.96194347,67261.0,67260.0,0.328605]
[1729733439210,1.09791992,67261.0,67260.0,0.328605]
[1729733439410,1.09791992,67261.0,67260.0,0.17993]
[1729733439411,1.25342373,67261.0,67260.0,0.17993]
[1729733439549,1.25342373,67261.0,67260.0,0.12046]
[1729733439754,1.25342373,67261.0,67245.0,0.002]
[1729733439755,0.229165,67246.0,67245.0,0.002]
[1729733440002,0.77614526,67246.0,67245.0,0.002]
[1729733440153,0.94022032,67246.0,67245.0,0.002]
[1729733440374,0.94018168,67246.0,67245.0,0.002]
[1729733440593,0.94241271,67246.0,67245.0,0.44813]
[1729733441597,0.94941271,67246.0,67245.0,0.42254267]
[1729733441798,1.17428027,67246.0,67245.0,0.42254267]
[1729733442141,1.03830382,67246.0,67245.0,0.42254267]
[1729733442346,1.03824937,67246.0,67245.0,0.42254267]
[1729733442729,1.03724937,67246.0,67245.0,0.42254267]
[1729733442935,0.90027292,67246.0,67245.0,0.42254267]
[1729733443139,0.94629843,67246.0,67245.0,0.42254267]
[1729733443337,0.84887727,67246.0,67245.0,0.42254267]
[1729733444277,0.84887727,67246.0,67245.0,0.42271267]
[1729733444440,0.78226201,67246.0,67245.0,0.42271267]
[1729733444641,0.56616745,67246.0,67245.0,0.42271267]
[1729733444877,0.22619703,67246.0,67245.0,0.42271267]
[1729733445098,0.23139603,67246.0,67245.0,0.42271267]
[1729733451970,0.27583519,67246.0,67245.0,0.42353767]
[1729733452200,0.23139603,67246.0,67245.0,0.42353767]
[1729733452431,0.12119703,67246.0,67245.0,0.77061412]
[1729733452581,0.00223103,67246.0,67245.0,0.77061412]
[1729733452787,0.00223103,67246.0,67245.0,0.85271412]
[1729733452998,0.12119703,67246.0,67245.0,0.85271412]
[1729733453196,0.00223103,67246.0,67245.0,0.85271412]
[1729733453410,0.12119703,67246.0,67245.0,0.85271412]
[1729733454803,0.12119703,67246.0,67245.0,0.71673767]
[1729733457260,0.118964,67247.0,67246.0,0.023]
[1729733457681,0.118964,67247.0,67246.0,0.49271]
[1729733458322,0.04448175,67253.0,67246.0,0.49271]
[1729733458530,0.5271627,67255.0,67246.0,0.49271]
[1729733458531,0.50492182,67255.0,67251.0,0.13597645]
[1729733458738,0.356856,67254.0,67252.0,0.023]
[1729733458938,0.118953,67253.0,67252.0,0.49267]
[1729733459667,0.06672263,67257.0,67254.0,0.023]
[1729733459668,0.04448175,67257.0,67254.0,0.023]
[1729733459916,0.04448175,67257.0,67253.0,0.0801]
[1729733459917,0.04448175,67260.0,67258.0,0.023]
[1729733460099,0.001652,67261.0,67260.0,0.146941]
[1729733460332,0.001652,67261.0,67260.0,0.28291745]
[1729733460539,0.001652,67261.0,67260.0,0.75253745]
[1729733460960,0.001652,67261.0,67260.0,0.49762]
[1729733461166,0.001652,67261.0,67260.0,0.63359645]
[1729733461382,0.001652,67261.0,67260.0,0.75253745]
[1729733462686,0.001652,67261.0,67260.0,1.11911771]
[1729733462882,0.001652,67261.0,67260.0,1.31141771]
[1729733463349,0.001652,67261.0,67260.0,1.0399729]
[1729733463565,0.120591,67261.0,67260.0,0.76802]
[1729733463764,0.001652,67261.0,67260.0,0.886961]
[1729733463981,0.001652,67261.0,67260.0,1.03746481]
[1729733464169,0.001652,67261.0,67260.0,1.17344126]
[1729733464811,0.001652,67261.0,67260.0,1.17544126]
[1729733465238,0.001652,67261.0,67260.0,1.17926649]
[1729733466954,0.001652,67261.0,67260.0,1.04329004]
[1729733468006,0.001652,67261.0,67260.0,1.17926649]
[1729733468440,0.001652,67261.0,67260.0,1.04329004]
[1729733468866,0.001652,67261.0,67260.0,1.17926649]
[1729733470403,0.22253707,67273.0,67260.0,1.17926649]
[1729733470404,0.22253707,67273.0,67272.0,0.56189645]
[1729733470675,0.22253707,67273.0,67272.0,0.71240026]
[1729733470882,0.22253707,67273.0,67272.0,1.17994026]
[1729733471086,0.22253707,67282.0,67280.0,0.005]
[1729733471322,0.22253707,67282.0,67281.0,0.15897645]
[1729733471520,0.22253707,67282.0,67281.0,0.62845645]
[1729733471856,0.118899,67284.0,67281.0,0.49248]
[1729733472547,0.237789,67287.0,67281.0,0.49248]
[1729733472751,0.118897,67285.0,67281.0,0.62845645]
[1729733474065,0.237771,67292.0,67281.0,0.62845645]
[1729733474066,0.118884,67293.0,67287.0,0.005]
[1729733474289,0.22253707,67296.0,67294.0,0.141881]
[1729733474529,0.22253707,67296.0,67294.0,0.22805249]
[1729733474750,0.22253707,67296.0,67294.0,0.57559]
[1729733474962,0.118873,67299.0,67294.0,0.696471]
[1729733475175,0.22253707,67300.0,67294.0,0.57559]
[1729733475386,0.118876,67297.0,67294.0,0.57559]
[1729733476294,0.22253707,67300.0,67294.0,0.49739]
[1729733476295,0.120531,67295.0,67294.0,0.49739]
[1729733476707,0.001652,67295.0,67294.0,0.49739]
[1729733476921,0.120531,67295.0,67294.0,0.46939]
[1729733477588,0.23073,67295.0,67294.0,0.46939]
[1729733478881,0.225531,67295.0,67294.0,0.46939]
[1729733485567,0.23073,67295.0,67294.0,0.46939]
[1729733487612,0.38123381,67295.0,67294.0,0.46939]
[1729733489022,0.64963381,67295.0,67294.0,0.46939]
[1729733489235,0.64763381,67295.0,67294.0,0.46939]
[1729733489847,0.64763381,67295.0,67294.0,0.43967]
[1729733490067,0.64763381,67295.0,67294.0,0.32079]
[1729733490068,0.88217088,67295.0,67294.0,0.32079]
[1729733490274,0.88217088,67295.0,67271.0,0.22253707]
[1729733490275,0.229119,67272.0,67271.0,0.22253707]
[1729733490485,0.51559926,67272.0,67271.0,0.22253707]
[1729733490683,0.118934,67264.0,67263.0,0.22253707]
[1729733490886,0.39667926,67272.0,67258.0,0.0752]
[1729733490887,0.105199,67271.0,67258.0,0.0752]
[1729733491117,0.118937,67262.0,67258.0,0.0752]
[1729733491521,0.118937,67262.0,67261.0,0.446845]
[1729733493484,0.1211621,67266.0,67262.0,0.023]
[1729733493708,0.118933,67265.0,67262.0,0.023]
[1729733493917,0.118935,67264.0,67263.0,0.44601]
[1729733494124,0.118935,67264.0,67263.0,0.46901]
[1729733495000,0.237851,67269.0,67264.0,0.023]
[1729733495221,0.118927,67268.0,67264.0,0.023]
[1729733495421,0.12115703,67268.0,67265.0,0.446]
[1729733495639,0.12115703,67268.0,67266.0,0.023]
[1729733495933,0.00223003,67268.0,67267.0,0.350051]
[1729733496358,0.00223003,67268.0,67267.0,0.425251]
[1729733496568,0.22253707,67272.0,67268.0,0.023]
[1729733496569,0.1,67272.0,67268.0,0.023]
[1729733496986,0.1,67272.0,67270.0,0.023]
[1729733497400,0.1,67272.0,67271.0,0.58789]
[1729733497604,0.21892,67272.0,67271.0,0.58789]
[1729733497779,0.22115002,67272.0,67271.0,0.58789]
[1729733498193,0.22115002,67272.0,67271.0,0.56489]
[1729733500539,0.37665383,67272.0,67271.0,0.56489]
[1729733500694,0.22115002,67272.0,67271.0,0.56489]
[1729733501101,0.22615002,67272.0,67271.0,0.56489]
[1729733503777,0.22115002,67272.0,67271.0,0.56489]
[1729733504148,0.22615002,67272.0,67271.0,0.56489]
[1729733510352,0.50687108,67272.0,67271.0,0.56489]
[1729733510541,0.68757108,67272.0,67271.0,0.56489]
[1729733510743,0.64325283,67272.0,67271.0,0.56489]
[1729733511019,0.70973021,67272.0,67271.0,0.56489]
[1729733511231,0.92016191,67272.0,67271.0,0.56489]
[1729733511647,0.93216191,67272.0,67271.0,0.56489]
[1729733511847,0.93381191,67272.0,67271.0,0.56489]
[1729733512055,0.93178649,67272.0,67271.0,0.56489]
[1729733512464,1.02107649,67272.0,67271.0,0.53516]
[1729733512678,0.244126,67268.0,67267.0,0.000825]
[1729733512887,1.18123142,67268.0,67267.0,0.000825]
[1729733513097,1.41915305,67268.0,67267.0,0.000825]
[1729733513311,1.20295561,67268.0,67267.0,0.000825]
[1729733513532,0.7823879,67263.0,67262.0,0.000825]
[1729733513751,1.09685042,67263.0,67262.0,0.000825]
[1729733514411,1.18562538,67263.0,67262.0,0.000825]
[1729733514615,1.09685042,67263.0,67262.0,0.000825]
[1729733515268,1.09885042,67263.0,67262.0,0.000825]
[1729733515492,1.00142335,67263.0,67262.0,0.000825]
[1729733515714,0.99942335,67263.0,67262.0,0.000825]
[1729733516401,1.05334535,67263.0,67262.0,0.000825]
[1729733516691,0.98681371,67263.0,67262.0,0.000825]
[1729733517149,1.05332281,67263.0,67262.0,0.000825]
[1729733517372,1.15049484,67263.0,67262.0,0.000825]
[1729733517847,1.15044718,67263.0,67262.0,0.000825]
[1729733518073,1.01447073,67263.0,67262.0,0.000825]
[1729733518309,1.15044718,67263.0,67262.0,0.000825]
[1729733518540,0.98681371,67263.0,67262.0,0.000825]
[1729733519515,0.9172981,67263.0,67262.0,0.000825]
[1729733520228,1.05327455,67263.0,67262.0,0.000825]
[1729733520801,0.98681371,67263.0,67262.0,0.000825]
[1729733521290,0.98881371,67263.0,67262.0,0.000825]
[1729733521540,1.15241776,67263.0,67262.0,0.000825]
[1729733522011,0.246136,67262.0,67261.0,0.000825]
[1729733522236,0.39663981,67262.0,67261.0,0.000825]
[1729733522469,0.46310754,67262.0,67261.0,0.000825]
[1729733522704,0.56026062,67262.0,67261.0,0.000825]
[1729733523152,0.55826062,67262.0,67261.0,0.000825]
[1729733524330,0.46111438,67262.0,67261.0,0.000825]
[1729733524800,0.39463981,67262.0,67261.0,0.000825]
[1729733525043,0.46111946,67262.0,67261.0,0.000825]
[1729733525499,0.39463981,67262.0,67261.0,0.000825]
[1729733525789,0.46111946,67262.0,67261.0,0.000825]
[1729733526013,0.39463981,67262.0,67261.0,0.000825]
[1729733528594,0.97213679,67262.0,67261.0,0.000825]
[1729733528797,0.84479128,67262.0,67261.0,0.000825]
[1729733529007,0.84679128,67262.0,67261.0,0.000825]
[1729733529208,0.95759071,67262.0,67261.0,0.000825]
[1729733529443,0.84679128,67262.0,67261.0,0.000825]
[1729733529647,0.95759071,67262.0,67261.0,0.000825]
[1729733530450,0.229165,67246.0,67241.0,0.30493707]
[1729733530715,0.37966881,67246.0,67241.0,0.22253707]
[1729733530964,0.37966881,67246.0,67238.0,0.0824]
[1729733531730,0.229165,67246.0,67245.0,0.083395]
[1729733532667,0.223966,67246.0,67245.0,0.083395]
[1729733534838,0.118966,67246.0,67245.0,0.083395]
[1729733535761,0.118966,67246.0,67245.0,0.08804745]
[1729733537482,0.237918,67250.0,67245.0,0.08804745]
[1729733537695,0.118966,67246.0,67245.0,0.083395]
[1729733537917,0.118966,67246.0,67245.0,0.08804729]
[1729733538840,0.33751946,67246.0,67245.0,0.083395]
[1729733539062,0.23139586,67246.0,67245.0,0.000995]
[1729733539292,0.38189967,67246.0,67245.0,0.000995]
[1729733540042,0.39069247,67246.0,67245.0,0.000995]
[1729733541137,0.4350773,67246.0,67245.0,0.000995]
[1729733541348,0.1,67236.0,67218.0,0.22253707]
[1729733541557,0.42458068,67227.0,67218.0,0.22253707]
[1729733541760,0.44878379,67227.0,67218.0,0.22253707]
[1729733541967,0.44878379,67227.0,67217.0,0.00197]
[1729733541968,0.54411084,67227.0,67217.0,0.00197]
[1729733542205,0.67129275,67227.0,67217.0,0.00197]
[1729733542416,0.63463412,67227.0,67217.0,0.00197]
[1729733542619,0.53267826,67227.0,67226.0,0.00271863]
[1729733542830,0.69455178,67227.0,67226.0,0.00171863]
[1729733543267,0.73521331,67227.0,67226.0,6.3e-07]
[1729733543497,0.83247649,67227.0,67226.0,6.3e-07]
[1729733543703,0.234214,67218.0,67217.0,0.00197]
[1729733543924,0.59292056,67218.0,67217.0,0.00197]
[1729733544150,0.52069426,67218.0,67217.0,0.00197]
[1729733544586,0.56728362,67218.0,67217.0,0.00197]
[1729733545250,0.52292625,67218.0,67217.0,0.00197]
[1729733545884,0.3869498,67218.0,67217.0,0.00197]
[1729733547002,0.144225,67212.0,67211.0,0.00032154]
[1729733547207,0.144225,67212.0,67207.0,0.000841]
[1729733547208,0.38020845,67208.0,67207.0,0.000841]
[1729733547470,0.66668871,67208.0,67207.0,0.000841]
[1729733547671,0.53071226,67208.0,67207.0,0.000841]
[1729733548025,0.59725726,67208.0,67207.0,0.000841]
[1729733548200,0.57503924,67208.0,67207.0,0.000841]
[1729733548387,0.61350648,67208.0,67207.0,0.000841]
[1729733548796,0.57504257,67208.0,67207.0,0.000841]
[1729733549369,0.53071226,67208.0,67207.0,0.000841]
[1729733550139,0.52071226,67208.0,67207.0,0.000841]
[1729733550510,0.53071226,67208.0,67207.0,0.000841]
[1729733550709,0.53463702,67208.0,67207.0,0.000841]
[1729733551063,0.52963702,67208.0,67207.0,0.000841]
[1729733551482,0.52463702,67208.0,67207.0,0.000841]
[1729733556085,0.66561347,67208.0,67207.0,0.000841]
[1729733556264,0.5061969,67201.0,67199.0,0.000842]
[1729733556487,0.65670071,67201.0,67199.0,0.000842]
[1729733557113,0.65170071,67201.0,67199.0,0.000842]
[1729733557360,0.124257,67194.0,67193.0,0.000842]
[1729733557584,0.51073726,67194.0,67193.0,0.000842]
[1729733558200,0.51573726,67194.0,67193.0,0.000842]
[1729733559077,0.36523345,67194.0,67193.0,0.000842]
[1729733559463,0.51573726,67194.0,67193.0,0.000842]
[1729733560840,0.229257,67194.0,67193.0,0.078042]
[1729733561042,0.224058,67194.0,67193.0,0.078042]
[1729733561443,0.22629094,67194.0,67193.0,0.078042]
[1729733563468,0.224058,67194.0,67193.0,0.078042]
[1729733565111,0.219058,67194.0,67193.0,0.078042]
[1729733565312,0.219058,67194.0,67193.0,0.276342]
[1729733566317,0.22129074,67194.0,67193.0,0.276342]
[1729733566752,0.22129074,67194.0,67193.0,0.078042]
[1729733566927,0.23148974,67194.0,67193.0,0.078042]
[1729733567581,0.38199355,67194.0,67193.0,0.078042]
[1729733568663,0.22648974,67194.0,67193.0,0.078042]
[1729733569044,0.23148974,67194.0,67193.0,0.078042]
[1729733570453,0.38199355,67194.0,67193.0,0.000842]
[1729733571635,0.38199355,67194.0,67193.0,0.00549868]
[1729733574752,0.23148974,67194.0,67193.0,0.00549868]
[1729733574890,0.23148974,67194.0,67193.0,0.01294925]
[1729733575290,0.23148974,67194.0,67193.0,0.01294917]
[1729733575952,0.229257,67194.0,67193.0,0.01294917]
[1729733576158,0.224058,67194.0,67193.0,0.01294917]
[1729733577542,0.2262908,67194.0,67193.0,0.01294917]
[1729733578034,0.2312908,67194.0,67193.0,0.01294917]
[1729733578514,0.2314898,67194.0,67193.0,0.01294917]
[1729733578774,0.2314898,67194.0,67193.0,0.01294911]
[1729733581308,0.2314898,67194.0,67193.0,0.000842]
[1729733581548,0.2314898,67194.0,67193.0,0.01294911]
[1729733583047,0.00551454,67199.0,67193.0,0.01294911]
[1729733583048,0.10165,67199.0,67195.0,0.023]
[1729733583250,0.119054,67196.0,67195.0,0.023]
[1729733583470,0.119054,67196.0,67195.0,0.11770545]
[1729733583471,0.00223246,67196.0,67195.0,0.11770545]
[1729733584312,0.00223246,67196.0,67195.0,0.12879653]
[1729733584685,0.00223246,67196.0,67195.0,0.33159653]
[1729733584921,0.00223246,67196.0,67195.0,0.3084]
[1729733585130,0.00223246,67196.0,67195.0,0.45065076]
[1729733585358,0.00223246,67196.0,67195.0,0.31749043]
[1729733585548,0.00165,67199.0,67198.0,0.147051]
[1729733585754,0.22253707,67201.0,67200.0,0.56142345]
[1729733585883,0.22253707,67201.0,67200.0,0.59914552]
[1729733586081,0.238069,67208.0,67204.0,0.023]
[1729733586343,0.119038,67205.0,67204.0,0.023]
[1729733586545,0.119038,67205.0,67204.0,0.03510284]
[1729733589364,0.119038,67205.0,67204.0,0.03510293]
[1729733590175,0.119038,67205.0,67204.0,0.02765497]
[1729733590675,0.119038,67205.0,67204.0,0.01210314]
[1729733590925,0.119038,67205.0,67204.0,0.00465497]
[1729733593308,0.119035,67207.0,67204.0,0.00465497]
[1729733593512,0.238069,67208.0,67203.0,0.0826]
[1729733593513,0.119037,67206.0,67205.0,0.00465497]
[1729733593906,0.239711,67211.0,67210.0,0.147029]
[1729733593907,0.001652,67211.0,67210.0,0.147029]
[1729733594106,0.001652,67211.0,67210.0,0.30570278]
[1729733595183,0.001652,67211.0,67210.0,0.29825497]
[1729733596267,0.001652,67211.0,67210.0,0.29825441]
[1729733596717,0.001652,67211.0,67210.0,0.41728341]
[1729733596903,0.001652,67211.0,67210.0,0.55325986]
[1729733597343,0.001652,67211.0,67210.0,0.55525986]
[1729733598327,0.001652,67211.0,67210.0,0.55525944]
[1729733598750,0.001652,67211.0,67210.0,0.70576325]
[1729733599371,0.22253707,67223.0,67222.0,0.389608]
[1729733599583,0.22253707,67223.0,67222.0,0.54858445]
[1729733600107,0.237982,67232.0,67225.0,0.023]
[1729733600108,0.118997,67229.0,67225.0,0.023]
[1729733600320,0.237988,67230.0,67225.0,0.023]
[1729733600520,0.119001,67226.0,67225.0,0.023]
[1729733600732,0.119001,67226.0,67223.0,0.023]
[1729733601765,0.119001,67226.0,67223.0,0.028]
[1729733601990,0.119001,67226.0,67224.0,0.005]
[1729733602192,0.119001,67226.0,67225.0,0.023]
[1729733602397,0.237996,67228.0,67225.0,0.023]
[1729733602579,0.119,67227.0,67225.0,0.023]
[1729733603047,0.237996,67228.0,67223.0,0.023]
[1729733603251,0.119003,67225.0,67223.0,0.028]
[1729733603662,0.237996,67228.0,67223.0,0.028]
[1729733603859,0.119001,67226.0,67223.0,0.028]
[1729733604424,0.119005,67224.0,67223.0,0.028]
[1729733604638,0.119005,67224.0,67223.0,0.023]
[1729733604869,0.22753707,67231.0,67222.0,0.0777]
[1729733605183,0.119016,67218.0,67216.0,0.0771]
[1729733605312,0.238017,67222.0,67216.0,0.0771]
[1729733605514,0.22753707,67231.0,67216.0,0.0771]
[1729733605515,0.119017,67217.0,67216.0,0.0771]
[1729733606509,0.119028,67211.0,67210.0,0.0771]
[1729733606953,0.238048,67214.0,67210.0,0.0771]
[1729733607149,0.119028,67211.0,67210.0,0.0771]
[1729733608521,0.119035,67207.0,67206.0,0.023]
[1729733608698,0.238056,67211.0,67206.0,0.02765442]
[1729733608850,0.238056,67211.0,67206.0,0.023]
[1729733609054,0.238056,67211.0,67205.0,0.0821]
[1729733609055,0.119031,67209.0,67208.0,0.023]
[1729733609253,0.119031,67209.0,67208.0,0.02765444]
[1729733609687,0.119031,67210.0,67208.0,0.02765444]
[1729733609884,0.22253707,67211.0,67206.0,0.023]
[1729733610140,0.238059,67210.0,67206.0,0.023]
[1729733610455,0.119035,67207.0,67206.0,0.023]
[1729733611005,0.238045,67214.0,67206.0,0.023]
[1729733611212,0.22253707,67213.0,67206.0,0.023]
[1729733611420,0.238052,67212.0,67206.0,0.023]
[1729733611930,0.119035,67207.0,67206.0,0.023]
[1729733612103,0.119035,67207.0,67206.0,0.02765474]
[1729733612505,0.119035,67207.0,67206.0,0.00465474]